[Event "*** Titled Tuesday Blitz"]
[Site "Chess.com"]
[Date "2020.11.24"]
[Round "3"]
[White "Kopytkin"]
[Black "beto-betun"]
[Result "1-0"]
[WhiteElo "2432"]
[BlackElo "2193"]
[TimeControl "180+1"]
[EndTime "10:41:12 PST"]
[Termination "Kopytkin won by resignation"]

1. e4 {[%clk 0:03:00.9]} 1... c5 {[%clk 0:02:59.8]} 2. d4 {[%clk 0:03:00.4]}
2... cxd4 {[%clk 0:02:59.2]} 3. c3 {[%clk 0:03:00.9]} 3... dxc3 {[%clk
0:02:59.6]} 4. Nxc3 {[%clk 0:03:01.1]} 4... e6 {[%clk 0:02:59.9]} 5. Nf3 {[%clk
0:03:01.6]} 5... a6 {[%clk 0:03:00.4]} 6. Bc4 {[%clk 0:03:02.1]} 6... Nc6 {[%clk
0:03:00]} 7. e5 {[%clk 0:02:59.2]} 7... d5 {[%clk 0:02:45.7]} 8. Bd3 {[%clk
0:02:54.2]} 8... Nge7 {[%clk 0:02:41.9]} 9. O-O {[%clk 0:02:53.1]} 9... g6
{[%clk 0:02:31.8]} 10. Bg5 {[%clk 0:02:50.7]} 10... Bg7 {[%clk 0:02:32.2]} 11.
Re1 {[%clk 0:02:50.2]} 11... h6 {[%clk 0:02:30.5]} 12. Bf6 {[%clk 0:02:50]}
12... Bxf6 {[%clk 0:02:28.6]} 13. exf6 {[%clk 0:02:49.9]} 13... Nf5 {[%clk
0:02:29.1]} 14. Bxf5 {[%clk 0:02:47.3]} 14... gxf5 {[%clk 0:02:30]} 15. Nxd5
{[%clk 0:02:20.8]} 15... Kf8 {[%clk 0:02:28.7]} 16. Ne7 {[%clk 0:02:09.1]} 16...
Qb6 {[%clk 0:02:16.2]} 17. Qd6 {[%clk 0:02:06]} 17... Qxb2 {[%clk 0:02:02.9]}
18. Nxc6+ {[%clk 0:01:34.6]} 18... Kg8 {[%clk 0:02:02.8]} 19. Ne7+ {[%clk
0:01:24]} 19... Kh7 {[%clk 0:02:01.2]} 20. Ne5 {[%clk 0:01:21.6]} 1-0

[Event "*** Titled Tuesday Blitz"]
[Site "Chess.com"]
[Date "2020.11.24"]
[Round "3"]
[White "Ariadna_Atreides"]
[Black "PowerThinking2650"]
[Result "0-1"]
[WhiteElo "2112"]
[BlackElo "2349"]
[TimeControl "180+1"]
[EndTime "10:41:25 PST"]
[Termination "PowerThinking2650 won by resignation"]

1. d4 {[%clk 0:03:00.9]} 1... Nf6 {[%clk 0:02:59.4]} 2. Nf3 {[%clk 0:03:00.7]}
2... g6 {[%clk 0:02:57.7]} 3. c4 {[%clk 0:03:00]} 3... Bg7 {[%clk 0:02:57.8]} 4.
Nc3 {[%clk 0:03:00]} 4... d6 {[%clk 0:02:58.1]} 5. e4 {[%clk 0:02:59.7]} 5...
O-O {[%clk 0:02:58.5]} 6. Be2 {[%clk 0:02:59.2]} 6... e5 {[%clk 0:02:58.9]} 7.
d5 {[%clk 0:02:58.7]} 7... a5 {[%clk 0:02:58.3]} 8. Bg5 {[%clk 0:02:57]} 8... h6
{[%clk 0:02:58.1]} 9. Bh4 {[%clk 0:02:57.3]} 9... Na6 {[%clk 0:02:57.7]} 10. Nd2
{[%clk 0:02:56.8]} 10... Qe8 {[%clk 0:02:57.4]} 11. O-O {[%clk 0:02:52.9]} 11...
Nh7 {[%clk 0:02:56.9]} 12. f3 {[%clk 0:02:50.1]} 12... h5 {[%clk 0:02:56.8]} 13.
Bf2 {[%clk 0:02:44.7]} 13... Bh6 {[%clk 0:02:56]} 14. Nb5 {[%clk 0:02:40.5]}
14... Qe7 {[%clk 0:02:50.3]} 15. a3 {[%clk 0:02:36]} 15... Bd7 {[%clk 0:02:49]}
16. Rb1 {[%clk 0:02:27]} 16... Bf4 {[%clk 0:02:39.7]} 17. b4 {[%clk 0:02:11.3]}
17... axb4 {[%clk 0:02:40.6]} 18. axb4 {[%clk 0:02:10.7]} 18... h4 {[%clk
0:02:40.4]} 19. c5 {[%clk 0:02:03.9]} 19... Qg5 {[%clk 0:02:38.7]} 20. Rb2
{[%clk 0:01:54]} 20... Bh3 {[%clk 0:02:32.2]} 21. g4 {[%clk 0:01:38.1]} 21...
hxg3 {[%clk 0:02:31.2]} 22. hxg3 {[%clk 0:01:31.3]} 22... Bxg3 {[%clk
0:02:29.8]} 23. Kh1 {[%clk 0:01:09.4]} 23... Bxf1 {[%clk 0:02:12.8]} 24. Qxf1
{[%clk 0:01:06.7]} 24... Qh4+ {[%clk 0:02:11.3]} 0-1

[Event "*** Titled Tuesday Blitz"]
[Site "Chess.com"]
[Date "2020.11.24"]
[Round "3"]
[White "MokshanovAlexey"]
[Black "ajdemipopushi"]
[Result "0-1"]
[WhiteElo "2609"]
[BlackElo "2438"]
[TimeControl "180+1"]
[EndTime "10:41:30 PST"]
[Termination "ajdemipopushi won by resignation"]

1. e4 {[%clk 0:03:00.9]} 1... c5 {[%clk 0:02:59.5]} 2. Nf3 {[%clk 0:03:00.5]}
2... g6 {[%clk 0:02:59.9]} 3. c3 {[%clk 0:02:59.1]} 3... d5 {[%clk 0:02:59.7]}
4. e5 {[%clk 0:02:58.7]} 4... Nc6 {[%clk 0:02:59.2]} 5. d4 {[%clk 0:02:58.8]}
5... Bg4 {[%clk 0:02:59.1]} 6. Nbd2 {[%clk 0:02:51.8]} 6... cxd4 {[%clk
0:02:54.4]} 7. cxd4 {[%clk 0:02:51.7]} 7... Qb6 {[%clk 0:02:52.5]} 8. h3 {[%clk
0:02:50.8]} 8... Bxf3 {[%clk 0:02:52.2]} 9. Nxf3 {[%clk 0:02:50.9]} 9... e6
{[%clk 0:02:51.6]} 10. Be2 {[%clk 0:02:40.2]} 10... Bb4+ {[%clk 0:02:50.3]} 11.
Kf1 {[%clk 0:02:40.5]} 11... h5 {[%clk 0:02:41.4]} 12. g3 {[%clk 0:02:37]} 12...
Bf8 {[%clk 0:02:31.6]} 13. Kg2 {[%clk 0:02:32.5]} 13... Bh6 {[%clk 0:02:30.7]}
14. Qb3 {[%clk 0:02:15.5]} 14... Qxb3 {[%clk 0:02:21.3]} 15. axb3 {[%clk
0:02:15.1]} 15... a6 {[%clk 0:02:21.2]} 16. g4 {[%clk 0:01:49.9]} 16... Bxc1
{[%clk 0:02:18]} 17. Rhxc1 {[%clk 0:01:48.8]} 17... Nge7 {[%clk 0:02:14.4]} 18.
Ra4 {[%clk 0:01:28.9]} 18... Kd7 {[%clk 0:02:01.3]} 19. Ng5 {[%clk 0:01:21.4]}
19... b5 {[%clk 0:01:51]} 20. Ra3 {[%clk 0:01:20.1]} 20... Nxd4 {[%clk
0:01:50.9]} 21. Nxf7 {[%clk 0:01:17.6]} 21... Nxe2 {[%clk 0:01:47.4]} 22. Nxh8
{[%clk 0:01:16.8]} 22... Nxc1 {[%clk 0:01:46.5]} 0-1

[Event "*** Titled Tuesday Blitz"]
[Site "Chess.com"]
[Date "2020.11.24"]
[Round "3"]
[White "kinga2008"]
[Black "Triumphmate"]
[Result "0-1"]
[WhiteElo "2183"]
[BlackElo "2428"]
[TimeControl "180+1"]
[EndTime "10:42:01 PST"]
[Termination "Triumphmate won by resignation"]

1. e4 {[%clk 0:02:20.5]} 1... d5 {[%clk 0:02:59]} 2. exd5 {[%clk 0:02:15.9]}
2... Nf6 {[%clk 0:02:58.1]} 3. Nc3 {[%clk 0:02:16.1]} 3... Bg4 {[%clk 0:02:58]}
4. Be2 {[%clk 0:02:14.8]} 4... Bxe2 {[%clk 0:02:58.4]} 5. Ngxe2 {[%clk
0:02:12.9]} 5... c6 {[%clk 0:02:59.3]} 6. O-O {[%clk 0:02:09.8]} 6... cxd5
{[%clk 0:02:59]} 7. d4 {[%clk 0:02:08.2]} 7... e6 {[%clk 0:02:59.5]} 8. Bg5
{[%clk 0:02:08]} 8... Bd6 {[%clk 0:02:59.5]} 9. f4 {[%clk 0:02:07.5]} 9... h6
{[%clk 0:02:58.2]} 10. Bh4 {[%clk 0:02:07.2]} 10... Nc6 {[%clk 0:02:58.7]} 11.
f5 {[%clk 0:02:06]} 11... O-O {[%clk 0:02:59.1]} 12. fxe6 {[%clk 0:02:04.5]}
12... fxe6 {[%clk 0:03:00]} 13. Nf4 {[%clk 0:02:05.1]} 13... Bxf4 {[%clk
0:02:49.4]} 14. Rxf4 {[%clk 0:02:04.3]} 14... g5 {[%clk 0:02:50]} 15. Rg4 {[%clk
0:01:46.7]} 15... Nxg4 {[%clk 0:02:49.1]} 16. Qxg4 {[%clk 0:01:47.6]} 16... Qf6
{[%clk 0:02:44.7]} 17. Ne2 {[%clk 0:01:39]} 17... Kh8 {[%clk 0:02:38.1]} 18. Bg3
{[%clk 0:01:36.7]} 18... Rf7 {[%clk 0:02:33.5]} 19. h4 {[%clk 0:01:13]} 19...
Rg8 {[%clk 0:02:26.9]} 20. hxg5 {[%clk 0:00:41.8]} 20... Rxg5 {[%clk 0:02:23.9]}
21. Qh3 {[%clk 0:00:39.3]} 21... Qg7 {[%clk 0:02:14]} 22. Nf4 {[%clk 0:00:36.8]}
22... Rxg3 {[%clk 0:02:12.4]} 0-1

[Event "*** Titled Tuesday Blitz"]
[Site "Chess.com"]
[Date "2020.11.24"]
[Round "3"]
[White "wisdomboy"]
[Black "SchieberSpieler"]
[Result "1-0"]
[WhiteElo "2160"]
[BlackElo "2339"]
[TimeControl "180+1"]
[EndTime "10:42:01 PST"]
[Termination "wisdomboy won by resignation"]

1. d4 {[%clk 0:03:00.6]} 1... d5 {[%clk 0:03:00.2]} 2. c4 {[%clk 0:03:00.9]}
2... e6 {[%clk 0:03:00.6]} 3. Nc3 {[%clk 0:03:01]} 3... Nf6 {[%clk 0:03:01.2]}
4. Bg5 {[%clk 0:03:01.1]} 4... Be7 {[%clk 0:03:01.1]} 5. e3 {[%clk 0:02:58.9]}
5... h6 {[%clk 0:03:01.6]} 6. Bh4 {[%clk 0:02:55]} 6... O-O {[%clk 0:03:01.8]}
7. Nf3 {[%clk 0:02:53.9]} 7... Ne4 {[%clk 0:03:02.1]} 8. Bxe7 {[%clk 0:02:53]}
8... Qxe7 {[%clk 0:03:03]} 9. cxd5 {[%clk 0:02:46.5]} 9... Nxc3 {[%clk
0:03:02.6]} 10. bxc3 {[%clk 0:02:47.4]} 10... exd5 {[%clk 0:03:03.5]} 11. Bd3
{[%clk 0:02:47.5]} 11... c5 {[%clk 0:03:00.9]} 12. O-O {[%clk 0:02:43.7]} 12...
Nc6 {[%clk 0:03:01]} 13. Qc2 {[%clk 0:02:33.6]} 13... Bg4 {[%clk 0:02:55.6]} 14.
Bf5 {[%clk 0:02:22.7]} 14... Bxf5 {[%clk 0:02:31.4]} 15. Qxf5 {[%clk 0:02:22]}
15... Rfd8 {[%clk 0:02:32.1]} 16. Rab1 {[%clk 0:02:20.3]} 16... b6 {[%clk
0:02:31.1]} 17. Rfd1 {[%clk 0:02:14.1]} 17... Rac8 {[%clk 0:02:31.1]} 18. Rdc1
{[%clk 0:02:03.6]} 18... Rc7 {[%clk 0:02:23.3]} 19. Rb5 {[%clk 0:01:56.9]} 19...
Na5 {[%clk 0:02:13.9]} 20. Ne5 {[%clk 0:01:49.5]} 20... f6 {[%clk 0:02:11.9]}
21. Ng6 {[%clk 0:01:47.4]} 21... Qe8 {[%clk 0:02:11.6]} 22. Rbb1 {[%clk
0:01:42]} 22... Qf7 {[%clk 0:02:05.9]} 23. Nf4 {[%clk 0:01:39.9]} 23... Re7
{[%clk 0:02:00.5]} 24. dxc5 {[%clk 0:01:31.8]} 24... bxc5 {[%clk 0:02:00.4]} 25.
Rb5 {[%clk 0:01:29.9]} 25... Rc7 {[%clk 0:01:56.3]} 26. Rd1 {[%clk 0:01:25.5]}
26... Nc4 {[%clk 0:01:42.2]} 27. Rxd5 {[%clk 0:01:21.2]} 27... Rxd5 {[%clk
0:01:31.5]} 28. Rb8+ {[%clk 0:01:18.4]} 1-0

[Event "*** Titled Tuesday Blitz"]
[Site "Chess.com"]
[Date "2020.11.24"]
[Round "3"]
[White "elohunter1999"]
[Black "margarita_2703"]
[Result "1-0"]
[WhiteElo "2580"]
[BlackElo "2405"]
[TimeControl "180+1"]
[EndTime "10:42:11 PST"]
[Termination "elohunter1999 won by resignation"]

1. d4 {[%clk 0:03:00.9]} 1... d5 {[%clk 0:02:59.4]} 2. c4 {[%clk 0:03:00.9]}
2... c6 {[%clk 0:02:59.1]} 3. Nf3 {[%clk 0:03:00.7]} 3... Nf6 {[%clk 0:02:58.6]}
4. Nc3 {[%clk 0:03:00.7]} 4... e6 {[%clk 0:02:58.4]} 5. Bg5 {[%clk 0:02:57.1]}
5... h6 {[%clk 0:02:57.1]} 6. Bh4 {[%clk 0:02:54]} 6... dxc4 {[%clk 0:02:56.6]}
7. e4 {[%clk 0:02:54]} 7... b5 {[%clk 0:02:34.4]} 8. e5 {[%clk 0:02:52.6]} 8...
g5 {[%clk 0:02:34.1]} 9. Nxg5 {[%clk 0:02:52.2]} 9... hxg5 {[%clk 0:02:34.1]}
10. Bxg5 {[%clk 0:02:52.6]} 10... Nbd7 {[%clk 0:02:34.1]} 11. g3 {[%clk
0:02:52.6]} 11... Bb7 {[%clk 0:02:27.6]} 12. Bg2 {[%clk 0:02:52.4]} 12... Be7
{[%clk 0:02:26]} 13. exf6 {[%clk 0:02:49.6]} 13... Bxf6 {[%clk 0:02:16.6]} 14.
Bxf6 {[%clk 0:02:47.1]} 14... Qxf6 {[%clk 0:02:12.2]} 15. Nxb5 {[%clk
0:02:16.8]} 15... cxb5 {[%clk 0:02:10.6]} 16. Bxb7 {[%clk 0:02:16.4]} 16... Rb8
{[%clk 0:02:09.7]} 17. Bg2 {[%clk 0:02:13.4]} 17... Nb6 {[%clk 0:01:58]} 18. O-O
{[%clk 0:02:05.1]} 18... Ke7 {[%clk 0:01:53]} 19. Qd2 {[%clk 0:02:00]} 19...
Rbd8 {[%clk 0:01:50.6]} 20. Qb4+ {[%clk 0:01:57.3]} 20... Rd6 {[%clk 0:01:44.6]}
21. Qxb5 {[%clk 0:01:53.3]} 21... Rxd4 {[%clk 0:01:37.8]} 22. Qc5+ {[%clk
0:01:49.7]} 22... Rd6 {[%clk 0:01:31.6]} 23. Rad1 {[%clk 0:01:47.5]} 23... Rd8
{[%clk 0:01:31.3]} 24. Rxd6 {[%clk 0:01:45.5]} 24... Rxd6 {[%clk 0:01:30.8]} 25.
Rd1 {[%clk 0:01:45.4]} 25... Nd5 {[%clk 0:01:27]} 26. Bxd5 {[%clk 0:01:37.9]}
26... exd5 {[%clk 0:01:22.2]} 27. Rxd5 {[%clk 0:01:34.2]} 27... c3 {[%clk
0:01:14.7]} 28. bxc3 {[%clk 0:01:32.5]} 28... Qe6 {[%clk 0:01:11.9]} 29. Qxd6+
{[%clk 0:01:31.9]} 29... Qxd6 {[%clk 0:01:11.7]} 30. Rxd6 {[%clk 0:01:32.8]} 1-0

[Event "*** Titled Tuesday Blitz"]
[Site "Chess.com"]
[Date "2020.11.24"]
[Round "3"]
[White "CzechmVIII"]
[Black "anon481216"]
[Result "0-1"]
[WhiteElo "2140"]
[BlackElo "2397"]
[TimeControl "180+1"]
[EndTime "10:42:12 PST"]
[Termination "anon481216 won by resignation"]

1. e4 {[%clk 0:03:00.9]} 1... c5 {[%clk 0:02:59.5]} 2. Nf3 {[%clk 0:03:00.7]}
2... Nf6 {[%clk 0:02:59.7]} 3. Nc3 {[%clk 0:02:59.7]} 3... d5 {[%clk 0:02:59.5]}
4. exd5 {[%clk 0:02:59.4]} 4... Nxd5 {[%clk 0:02:59.1]} 5. Bb5+ {[%clk 0:02:57]}
5... Bd7 {[%clk 0:02:59]} 6. Qe2 {[%clk 0:02:51.5]} 6... Nb4 {[%clk 0:02:57.5]}
7. Bxd7+ {[%clk 0:02:32.5]} 7... Nxd7 {[%clk 0:02:52]} 8. d3 {[%clk 0:02:32.6]}
8... e6 {[%clk 0:02:50.7]} 9. O-O {[%clk 0:02:30.6]} 9... Be7 {[%clk 0:02:50.5]}
10. Ne4 {[%clk 0:02:20.7]} 10... O-O {[%clk 0:02:49.1]} 11. Bf4 {[%clk
0:02:07.4]} 11... Nf6 {[%clk 0:02:45.6]} 12. a3 {[%clk 0:01:54]} 12... Nc6
{[%clk 0:02:40.2]} 13. Rad1 {[%clk 0:01:42.3]} 13... Nd5 {[%clk 0:02:38.8]} 14.
Bd2 {[%clk 0:01:41.9]} 14... b6 {[%clk 0:02:38.1]} 15. Rfe1 {[%clk 0:01:39.8]}
15... Qc7 {[%clk 0:02:37.2]} 16. h3 {[%clk 0:01:37.5]} 16... Rad8 {[%clk
0:02:36.1]} 17. Nc3 {[%clk 0:01:35.5]} 17... Nf4 {[%clk 0:02:34.3]} 18. Bxf4
{[%clk 0:01:31.5]} 18... Qxf4 {[%clk 0:02:33.9]} 19. Qe4 {[%clk 0:01:31.2]}
19... Qxe4 {[%clk 0:02:28]} 20. dxe4 {[%clk 0:01:22.2]} 20... Bf6 {[%clk
0:02:26.9]} 21. e5 {[%clk 0:01:13.1]} 21... Rxd1 {[%clk 0:02:25.5]} 22. Nxd1
{[%clk 0:01:09.6]} 22... Be7 {[%clk 0:02:24.1]} 23. Ne3 {[%clk 0:01:00.7]} 23...
Rd8 {[%clk 0:02:23.8]} 24. Nc4 {[%clk 0:01:00.9]} 24... b5 {[%clk 0:02:20.4]}
25. Ne3 {[%clk 0:00:56]} 25... c4 {[%clk 0:02:19.8]} 26. a4 {[%clk 0:00:51.8]}
26... a6 {[%clk 0:02:19.5]} 27. axb5 {[%clk 0:00:52.1]} 27... axb5 {[%clk
0:02:19.5]} 28. Ra1 {[%clk 0:00:50.2]} 28... Bc5 {[%clk 0:02:18]} 29. Ra6 {[%clk
0:00:42.3]} 29... Nb4 {[%clk 0:02:13.4]} 30. b3 {[%clk 0:00:29.3]} 30... Nxa6
{[%clk 0:02:12.7]} 0-1

[Event "*** Titled Tuesday Blitz"]
[Site "Chess.com"]
[Date "2020.11.24"]
[Round "3"]
[White "Mikasinski"]
[Black "WiktoriaPOL"]
[Result "1-0"]
[WhiteElo "2327"]
[BlackElo "2064"]
[TimeControl "180+1"]
[EndTime "10:42:15 PST"]
[Termination "Mikasinski won by resignation"]

1. e4 {[%clk 0:03:00.9]} 1... c5 {[%clk 0:02:59]} 2. Nf3 {[%clk 0:03:01]} 2...
g6 {[%clk 0:02:58.7]} 3. d4 {[%clk 0:03:01.6]} 3... cxd4 {[%clk 0:02:59.4]} 4.
Nxd4 {[%clk 0:03:02.3]} 4... Nc6 {[%clk 0:02:58.7]} 5. Nc3 {[%clk 0:03:02.8]}
5... Bg7 {[%clk 0:02:58]} 6. Be3 {[%clk 0:03:03.5]} 6... Nf6 {[%clk 0:02:57.5]}
7. Bc4 {[%clk 0:03:03.4]} 7... Qa5 {[%clk 0:02:57]} 8. O-O {[%clk 0:03:03.2]}
8... O-O {[%clk 0:02:56]} 9. Nb3 {[%clk 0:03:03.7]} 9... Qc7 {[%clk 0:02:54]}
10. f4 {[%clk 0:03:02.7]} 10... d6 {[%clk 0:02:50.2]} 11. Be2 {[%clk 0:03:03.3]}
11... Be6 {[%clk 0:02:37.2]} 12. g4 {[%clk 0:03:02.1]} 12... Na5 {[%clk
0:02:18.3]} 13. e5 {[%clk 0:02:44]} 13... dxe5 {[%clk 0:02:05.9]} 14. Nb5 {[%clk
0:02:42.4]} 14... Qd8 {[%clk 0:01:30.9]} 15. Qxd8 {[%clk 0:02:36.3]} 15... Rfxd8
{[%clk 0:01:30.1]} 16. Nxa5 {[%clk 0:02:33.2]} 16... Bxg4 {[%clk 0:01:26.3]} 17.
Bxg4 {[%clk 0:02:12.9]} 17... Nxg4 {[%clk 0:01:24]} 18. Bxa7 {[%clk 0:02:13.6]}
18... b6 {[%clk 0:01:13.6]} 19. Bxb6 {[%clk 0:02:10]} 19... Rdb8 {[%clk
0:01:09.1]} 20. Nc4 {[%clk 0:02:09.7]} 20... exf4 {[%clk 0:01:04.4]} 21. Rxf4
{[%clk 0:02:06.5]} 21... Ne5 {[%clk 0:01:03.7]} 22. Nxe5 {[%clk 0:02:03.8]}
22... Bxe5 {[%clk 0:01:03.2]} 23. Re4 {[%clk 0:02:03.5]} 23... Bf6 {[%clk
0:00:43.7]} 24. Nc7 {[%clk 0:01:58.3]} 24... Rxb6 {[%clk 0:00:36.4]} 25. Nxa8
{[%clk 0:01:57.1]} 25... Bxb2 {[%clk 0:00:35.4]} 26. Nxb6 {[%clk 0:01:55.9]}
26... Bxa1 {[%clk 0:00:34.8]} 27. a4 {[%clk 0:01:54.6]} 1-0

[Event "*** Titled Tuesday Blitz"]
[Site "Chess.com"]
[Date "2020.11.24"]
[Round "3"]
[White "Chesswizard_2007"]
[Black "Twitch_ElhamBlitz05"]
[Result "1-0"]
[WhiteElo "2617"]
[BlackElo "2805"]
[TimeControl "180+1"]
[EndTime "10:42:18 PST"]
[Termination "Chesswizard_2007 won on time"]

1. d4 {[%clk 0:03:00.9]} 1... Nf6 {[%clk 0:03:00.1]} 2. c4 {[%clk 0:03:00.7]}
2... e6 {[%clk 0:03:00.6]} 3. g3 {[%clk 0:02:59.1]} 3... d5 {[%clk 0:03:00.9]}
4. Nf3 {[%clk 0:02:58.4]} 4... dxc4 {[%clk 0:03:00.7]} 5. Bg2 {[%clk 0:02:58.2]}
5... c5 {[%clk 0:03:01.6]} 6. O-O {[%clk 0:02:57.4]} 6... Nc6 {[%clk 0:03:02.3]}
7. Qa4 {[%clk 0:02:56.5]} 7... Bd7 {[%clk 0:03:02.7]} 8. Qxc4 {[%clk 0:02:54.8]}
8... b5 {[%clk 0:03:03]} 9. Qc2 {[%clk 0:02:53.5]} 9... c4 {[%clk 0:03:02.9]}
10. Rd1 {[%clk 0:02:53]} 10... Rc8 {[%clk 0:03:03.2]} 11. Qd2 {[%clk 0:02:49.4]}
11... Be7 {[%clk 0:03:01.7]} 12. Qe1 {[%clk 0:02:49]} 12... O-O {[%clk
0:02:54.7]} 13. e4 {[%clk 0:02:48.5]} 13... Nb4 {[%clk 0:02:55.1]} 14. Ne5
{[%clk 0:02:46.3]} 14... Nc2 {[%clk 0:02:53.3]} 15. Qe2 {[%clk 0:02:30.8]} 15...
Nxa1 {[%clk 0:02:53]} 16. Bg5 {[%clk 0:02:27.5]} 16... b4 {[%clk 0:02:33.5]} 17.
d5 {[%clk 0:02:17.5]} 17... exd5 {[%clk 0:02:07.9]} 18. exd5 {[%clk 0:02:17.4]}
18... h6 {[%clk 0:01:22.5]} 19. Bf4 {[%clk 0:02:08.7]} 1-0

[Event "*** Titled Tuesday Blitz"]
[Site "Chess.com"]
[Date "2020.11.24"]
[Round "3"]
[White "GMKrikor"]
[Black "Forantes"]
[Result "1-0"]
[WhiteElo "2728"]
[BlackElo "2361"]
[TimeControl "180+1"]
[EndTime "10:42:19 PST"]
[Termination "GMKrikor won by resignation"]

1. e4 {[%clk 0:03:00.9]} 1... c5 {[%clk 0:02:59.4]} 2. Nf3 {[%clk 0:03:00.7]}
2... Nc6 {[%clk 0:02:59.4]} 3. Bb5 {[%clk 0:02:58.9]} 3... e5 {[%clk 0:02:59.9]}
4. O-O {[%clk 0:02:55]} 4... Bd6 {[%clk 0:02:56.3]} 5. c3 {[%clk 0:02:55.3]}
5... Nge7 {[%clk 0:02:55.5]} 6. d4 {[%clk 0:02:54.7]} 6... cxd4 {[%clk
0:02:55.2]} 7. cxd4 {[%clk 0:02:55.6]} 7... exd4 {[%clk 0:02:51.9]} 8. Nxd4
{[%clk 0:02:54.2]} 8... O-O {[%clk 0:02:42.2]} 9. Nc3 {[%clk 0:02:51.5]} 9...
Be5 {[%clk 0:02:27.1]} 10. Be3 {[%clk 0:02:47.4]} 10... Qc7 {[%clk 0:02:14]} 11.
g3 {[%clk 0:02:42.8]} 11... a6 {[%clk 0:02:10.3]} 12. Be2 {[%clk 0:02:39.6]}
12... b5 {[%clk 0:02:02.7]} 13. Rc1 {[%clk 0:02:37.8]} 13... Bb7 {[%clk
0:02:00.9]} 14. Nd5 {[%clk 0:02:34.8]} 14... Qd6 {[%clk 0:01:47.6]} 15. Nxc6
{[%clk 0:02:26.5]} 15... Nxd5 {[%clk 0:01:02.5]} 16. Nxe5 {[%clk 0:01:53.4]}
16... Qxe5 {[%clk 0:00:58.4]} 17. exd5 {[%clk 0:01:52.9]} 17... Qxb2 {[%clk
0:00:56.5]} 18. Rc7 {[%clk 0:01:48.4]} 18... Bxd5 {[%clk 0:00:56.8]} 19. Qxd5
{[%clk 0:01:46]} 19... Qxe2 {[%clk 0:00:57.3]} 20. Rxd7 {[%clk 0:01:45.2]} 20...
Rac8 {[%clk 0:00:51.4]} 21. Bc5 {[%clk 0:01:32.3]} 1-0

[Event "*** Titled Tuesday Blitz"]
[Site "Chess.com"]
[Date "2020.11.24"]
[Round "3"]
[White "1e41-0"]
[Black "RTFrancisco"]
[Result "1-0"]
[WhiteElo "2666"]
[BlackElo "2331"]
[TimeControl "180+1"]
[EndTime "10:42:19 PST"]
[Termination "1e41-0 won by resignation"]

1. d4 {[%clk 0:03:00.9]} 1... Nf6 {[%clk 0:02:59.1]} 2. c4 {[%clk 0:03:01.8]}
2... e6 {[%clk 0:02:59.2]} 3. Nc3 {[%clk 0:03:02.2]} 3... Bb4 {[%clk 0:02:59.3]}
4. f3 {[%clk 0:03:02.8]} 4... O-O {[%clk 0:02:56.9]} 5. a3 {[%clk 0:03:02.9]}
5... Bxc3+ {[%clk 0:02:44.7]} 6. bxc3 {[%clk 0:03:03.8]} 6... c5 {[%clk
0:02:43.6]} 7. e4 {[%clk 0:03:02.2]} 7... d6 {[%clk 0:02:37.6]} 8. Bd3 {[%clk
0:03:00.9]} 8... e5 {[%clk 0:02:37.9]} 9. Ne2 {[%clk 0:02:59.8]} 9... Nc6 {[%clk
0:02:36.5]} 10. Be3 {[%clk 0:02:57.5]} 10... b6 {[%clk 0:02:34.2]} 11. O-O
{[%clk 0:02:56.5]} 11... Ba6 {[%clk 0:02:28.3]} 12. f4 {[%clk 0:02:56.1]} 12...
Re8 {[%clk 0:02:10.2]} 13. fxe5 {[%clk 0:02:50.7]} 13... dxe5 {[%clk 0:02:09.7]}
14. d5 {[%clk 0:02:47.7]} 14... Na5 {[%clk 0:02:09.4]} 15. Bg5 {[%clk
0:02:45.6]} 15... Bxc4 {[%clk 0:01:55.2]} 16. Ng3 {[%clk 0:02:39.2]} 16... Bxd3
{[%clk 0:01:47.3]} 17. Qxd3 {[%clk 0:02:40.1]} 17... c4 {[%clk 0:01:46.7]} 18.
Qf3 {[%clk 0:02:38.7]} 18... Qd6 {[%clk 0:01:40.3]} 19. Nf5 {[%clk 0:02:36.5]}
19... Qc5+ {[%clk 0:01:40.5]} 20. Kh1 {[%clk 0:02:24.7]} 20... Nd7 {[%clk
0:01:35.3]} 21. Nxg7 {[%clk 0:02:22.1]} 21... f6 {[%clk 0:01:08.4]} 22. Ne6
{[%clk 0:02:14.3]} 22... Qe7 {[%clk 0:00:43.3]} 23. Bh6 {[%clk 0:02:13]} 23...
Qf7 {[%clk 0:00:32.2]} 24. Qh3 {[%clk 0:02:08.3]} 24... Nc5 {[%clk 0:00:22.5]}
25. Rf3 {[%clk 0:02:07.2]} 25... Nxe6 {[%clk 0:00:20.3]} 26. dxe6 {[%clk
0:02:06.6]} 26... Qxe6 {[%clk 0:00:20.5]} 27. Rg3+ {[%clk 0:02:06]} 27... Kf7
{[%clk 0:00:19.2]} 28. Rg7+ {[%clk 0:02:05]} 1-0